fUST/lending_fUST_20250817
["ID","MTS","AMOUNT","RATE_DAILY","PERIOD"]
[379663760,1755364251696,-1318.97,0.00021688,2]
[379663773,1755364251804,-1581.86,0.00021688,2]
[379663775,1755364251814,-480.0,0.00021688,2]
[379663777,1755364251823,-160.0,0.0002171,2]
[379663778,1755364251834,-153.0,0.00021746,2]
[379663780,1755364251842,-153.0,0.00021746,2]
[379663782,1755364251851,-306.0,0.00021746,2]
[379663784,1755364251861,-153.0,0.00021746,2]
[379663786,1755364251871,-153.0,0.00021746,2]
[379663788,1755364251881,-500.0,0.00021773,2]
[379663790,1755364251892,-151.0,0.00021775,3]
[379663792,1755364251901,-589.6,0.00021779,2]
[379663794,1755364251911,-788.43,0.00021781,2]
[379663796,1755364251920,-480.0,0.00021781,2]
[379663798,1755364251929,-480.0,0.00021781,2]
[379663800,1755364251938,-480.0,0.00021781,2]
[379663802,1755364251948,-2243.48,0.00021781,2]
[379663804,1755364251957,-480.0,0.00021781,2]
[379663806,1755364251966,-793.93,0.00021781,2]
[379663808,1755364251975,-480.0,0.00021781,2]
[379663810,1755364251984,-480.0,0.00021781,2]
[379663812,1755364251993,-730.21,0.00021781,2]
[379663814,1755364252002,-1004.02,0.00021781,2]
[379663816,1755364252012,-480.0,0.00021781,2]
[379663818,1755364252021,-630.03,0.00021781,2]
[379663820,1755364252031,-1947.53,0.00021781,2]
[379663822,1755364252041,-480.0,0.00021781,2]
[379663824,1755364252052,-480.0,0.00021781,2]
[379663826,1755364252061,-480.0,0.00021781,2]
[379663828,1755364252071,-480.0,0.00021781,2]
[379663830,1755364252080,-480.0,0.00021781,2]
[379663832,1755364252089,-877.94,0.00021781,2]
[379663834,1755364252098,-480.0,0.00021781,2]
[379663836,1755364252109,-1067.96,0.00021781,2]
[379663838,1755364252118,-259.213663,0.00021781,2]
[379663840,1755364252127,-1192.59,0.00021781,2]
[379663842,1755364252137,-259.213663,0.00021781,2]
[379663844,1755364252146,-1406.16,0.00021781,2]
[379663846,1755364252155,-1124.76,0.00021781,2]
[379663848,1755364252163,-480.0,0.00021781,2]
[379663850,1755364252172,-480.0,0.00021781,2]
[379663852,1755364252182,-2241.5,0.00021781,2]
[379663854,1755364252191,-1556.45,0.00021781,2]
[379663856,1755364252200,-1563.78,0.00021781,2]
[379663858,1755364252209,-368.61924045,0.00021781,2]
[379663860,1755364252219,-589.16,0.00021781,2]
[379663862,1755364252228,-480.0,0.00021781,2]
[379663864,1755364252237,-1347.09,0.00021781,2]
[379663866,1755364252247,-1962.21,0.00021781,2]
[379663868,1755364252255,-1711.21,0.00021781,2]
[379663870,1755364252264,-1161.09,0.00021781,2]
[379663872,1755364252274,-611.57166218,0.00021781,2]
[379663874,1755364252283,-2569.75,0.00021781,2]
[379663876,1755364252293,-480.0,0.00021781,2]
[379663877,1755364252302,-480.0,0.00021781,2]
[379663879,1755364252312,-480.0,0.00021781,2]
[379663881,1755364252324,-480.0,0.00021781,2]
[379663883,1755364252333,-1129.93,0.00021782,2]
[379663885,1755364252342,-1129.93,0.00021782,2]
[379663887,1755364252351,-1562.48,0.00021782,2]
[379663889,1755364252360,-450.92081809,0.00021782,2]
[379663891,1755364252369,-942.38,0.00021782,2]
[379663893,1755364252379,-1569.67,0.00021782,2]
[379663895,1755364252388,-480.0,0.00021782,2]
[379663897,1755364252397,-480.0,0.00021782,2]
[379663899,1755364252407,-480.0,0.00021782,2]
[379663901,1755364252416,-3637.8,0.00021782,2]
[379663903,1755364252425,-5249.45,0.00021782,2]
[379663905,1755364252434,-723.45,0.00021782,2]
[379663907,1755364252443,-480.0,0.00021782,2]
[379663909,1755364252452,-4083.81,0.00021782,2]
[379663911,1755364252461,-480.0,0.00021782,2]
[379663913,1755364252471,-9528.76,0.00021782,2]
[379663915,1755364252480,-1447.43,0.00021782,2]
[379663917,1755364252489,-356.79796541,0.00021782,2]
[379663919,1755364252499,-480.0,0.00021782,2]
[379663921,1755364252507,-480.0,0.00021782,2]
[379663923,1755364252516,-763.44,0.00021782,2]
[379663925,1755364252525,-1798.09,0.00021782,2]
[379663927,1755364252534,-733.1,0.00021782,2]
[379663929,1755364252543,-797.36,0.00021782,2]
[379663931,1755364252552,-2218.25,0.00021782,2]
[379663933,1755364252561,-480.0,0.00021782,2]
[379663935,1755364252570,-480.0,0.00021783,2]
[379663937,1755364252579,-480.0,0.00021783,2]
[379663939,1755364252588,-480.0,0.00021783,2]
[379663940,1755364252604,-480.0,0.00021783,2]
[379663942,1755364252614,-480.0,0.00021783,2]
[379663945,1755364252623,-480.0,0.00021783,2]
[379663946,1755364252636,-480.0,0.00021783,2]
[379663948,1755364252645,-1312.1,0.00021783,2]
[379663950,1755364252654,-480.0,0.00021783,2]
[379663952,1755364252663,-480.0,0.00021783,2]
[379663954,1755364252672,-792.51,0.00021783,2]
[379663956,1755364252681,-572.29,0.00021783,2]
[379663958,1755364252690,-480.0,0.00021783,2]
[379663960,1755364252699,-690.14,0.00021783,2]
[379663962,1755364252708,-480.0,0.00021783,2]
[379663964,1755364252717,-480.0,0.00021783,2]
[379663966,1755364252726,-480.0,0.00021783,2]
[379663968,1755364252735,-480.0,0.00021783,2]
[379663970,1755364252744,-480.0,0.00021783,2]
[379663972,1755364252753,-480.0,0.00021783,2]
[379663974,1755364252762,-605.9051855,0.00021783,2]
[379663976,1755364252771,-713.76,0.00021783,2]
[379663978,1755364252780,-480.0,0.00021783,2]
[379663980,1755364252790,-400.0,0.00021783,2]
[379663982,1755364252799,-555.51255621,0.00021783,2]
[379663984,1755364252807,-440.0,0.00021783,2]
[379663986,1755364252817,-925.85,0.00021783,2]
[379663988,1755364252826,-635.34,0.00021783,2]
[379663990,1755364252835,-480.0,0.00021783,2]
[379663992,1755364252844,-480.0,0.00021783,2]
[379663994,1755364252853,-558.33,0.00021783,2]
[379663996,1755364252862,-480.0,0.00021783,2]
[379663998,1755364252871,-1465.47,0.00021783,2]
[379664000,1755364252879,-480.0,0.00021783,2]
[379664002,1755364252888,-480.0,0.00021783,2]
[379664004,1755364252898,-440.0,0.00021783,2]
[379664006,1755364252907,-678.02,0.00021783,2]
[379664008,1755364252915,-480.0,0.00021783,2]
[379664010,1755364252925,-480.0,0.00021783,2]
[379664012,1755364252935,-480.0,0.00021783,2]
[379664014,1755364252944,-480.0,0.00021783,2]
[379664016,1755364252953,-480.0,0.00021783,2]
[379664018,1755364252963,-480.0,0.00021783,2]
[379664020,1755364252972,-460.0,0.00021783,2]
[379664022,1755364252981,-480.0,0.00021783,2]
[379664024,1755364252991,-480.0,0.00021783,2]
[379664026,1755364252999,-16964.14,0.00021785,2]
[379664028,1755364253008,-151.0,0.00021785,2]
[379664030,1755364253017,-271.247384,0.00021785,2]
[379664032,1755364253026,-271.247384,0.00021785,2]
[379664034,1755364253037,-2812.25,0.00021785,2]
[379664036,1755364253046,-12191.79,0.00021785,2]
[379664038,1755364253055,-480.0,0.00021797,2]
[379664040,1755364253064,-1156.62,0.00021797,2]
[379664042,1755364253073,-480.0,0.00021797,2]
[379664044,1755364253083,-480.0,0.00021797,2]
[379664046,1755364253092,-480.0,0.00021797,2]
[379664048,1755364253102,-480.0,0.00021797,2]
[379664050,1755364253111,-450.63447519,0.00021797,2]
[379664052,1755364253121,-460.0,0.00021797,2]
[379664054,1755364253130,-247.62847094,0.00021797,2]
[379664056,1755364253139,-480.0,0.00021797,2]
[379664058,1755364253148,-480.0,0.00021797,2]
[379664060,1755364253157,-480.0,0.00021797,2]
[379664062,1755364253167,-480.0,0.00021797,2]
[379664064,1755364253177,-480.0,0.00021797,2]
[379664066,1755364253192,-495.22,0.00021797,2]
[379664068,1755364253203,-480.0,0.00021797,2]
[379664070,1755364253212,-480.0,0.00021797,2]
[379664072,1755364253222,-480.0,0.00021797,2]
[379664074,1755364253231,-480.0,0.00021797,2]
[379664076,1755364253240,-480.0,0.00021797,2]
[379664078,1755364253249,-480.0,0.00021797,2]
[379664080,1755364253258,-576.61,0.00021797,2]
[379664082,1755364253268,-480.0,0.00021797,2]
[379664084,1755364253277,-480.0,0.00021797,2]
[379664086,1755364253286,-480.0,0.00021797,2]
[379664088,1755364253297,-480.0,0.00021797,2]
[379664090,1755364253306,-692.97,0.00021797,2]
[379664102,1755364253410,-480.0,0.00021797,2]
[379664104,1755364253420,-618.18,0.00021797,2]
[379664106,1755364253429,-480.0,0.00021797,2]
[379664107,1755364253439,-851.42,0.00021797,2]
[379664109,1755364253448,-1922.47,0.00021797,2]
[379664111,1755364253457,-2826.97,0.00021797,2]
[379664113,1755364253466,-480.0,0.00021797,2]
[379664115,1755364253475,-1610.57,0.00021797,2]
[379664117,1755364253485,-284.93132093,0.00021797,2]
[379664119,1755364253495,-480.0,0.00021797,2]
[379664121,1755364253504,-497.02,0.00021797,2]
[379664123,1755364253513,-480.0,0.00021797,2]
[379664125,1755364253523,-480.0,0.00021797,2]
[379664127,1755364253532,-440.0,0.00021797,2]
[379664129,1755364253542,-480.0,0.00021797,2]
[379664131,1755364253551,-480.0,0.00021797,2]
[379664133,1755364253560,-480.0,0.00021797,2]
[379664135,1755364253568,-480.0,0.00021797,2]
[379664137,1755364253577,-480.0,0.00021797,2]
[379664139,1755364253587,-420.0,0.00021797,2]
[379664140,1755364253597,-491.14,0.00021797,2]
[379664142,1755364253606,-480.0,0.00021797,2]
[379664144,1755364253615,-440.0,0.00021797,2]
[379664146,1755364253624,-480.0,0.00021797,2]
[379664148,1755364253633,-480.0,0.00021797,2]
[379664150,1755364253642,-480.0,0.00021797,2]
[379664152,1755364253652,-480.0,0.00021797,2]
[379664154,1755364253661,-480.0,0.00021797,2]
[379664156,1755364253670,-480.0,0.00021797,2]
[379664158,1755364253679,-632.56,0.00021797,2]
[379664160,1755364253688,-480.0,0.00021797,2]
[379664162,1755364253698,-480.0,0.00021797,2]
[379664164,1755364253707,-538.55565945,0.00021797,2]
[379664166,1755364253715,-400.0,0.00021797,2]
[379664168,1755364253725,-480.0,0.00021797,2]
[379664170,1755364253735,-495.0,0.00021797,2]
[379664172,1755364253744,-480.0,0.00021797,2]
[379664174,1755364253754,-1176.84,0.00021797,2]
[379664176,1755364253763,-480.0,0.00021797,2]
[379664178,1755364253772,-480.0,0.00021797,2]
[379664180,1755364253783,-480.0,0.00021797,2]
[379664181,1755364253792,-480.0,0.00021797,2]
[379664183,1755364253802,-1869.58,0.00021797,2]
[379664185,1755364253815,-480.0,0.00021797,2]
[379664188,1755364253825,-701.16,0.00021797,2]
[379664190,1755364253835,-5928.89,0.00021797,2]
[379664191,1755364253844,-1399.68,0.00021797,2]
[379664194,1755364253854,-480.0,0.00021797,2]
[379664196,1755364253864,-1213.19,0.00021797,2]
[379664198,1755364253873,-1691.67,0.00021797,2]
[379664199,1755364253883,-890.39,0.00021797,2]
[379664201,1755364253892,-420.61223397,0.00021797,2]
[379664203,1755364253902,-765.37,0.00021797,2]
[379664205,1755364253911,-480.0,0.00021797,2]
[379664207,1755364253920,-480.0,0.00021797,2]
[379664209,1755364253929,-480.0,0.00021797,2]
[379664211,1755364253939,-480.0,0.00021797,2]
[379664213,1755364253948,-480.0,0.00021797,2]
[379664216,1755364253959,-460.0,0.00021797,2]
[379664218,1755364253969,-351.01497511,0.00021797,2]
[379664220,1755364253978,-480.0,0.00021797,2]
[379664222,1755364253987,-480.0,0.00021797,2]
[379664224,1755364253997,-1294.52,0.00021797,2]
[379664226,1755364254007,-480.0,0.00021797,2]
[379664228,1755364254016,-480.0,0.00021797,2]
[379664230,1755364254029,-480.0,0.00021797,2]
[379664232,1755364254039,-480.0,0.00021797,2]
[379664234,1755364254052,-1364.37,0.00021797,2]
[379664235,1755364254064,-1496.38,0.00021797,2]
[379664237,1755364254076,-786.6,0.00021797,2]
[379664238,1755364254086,-480.0,0.00021797,2]
[379664240,1755364254096,-405.0774063,0.00021797,2]
[379664242,1755364254106,-480.0,0.00021797,2]
[379664244,1755364254115,-480.0,0.00021797,2]
[379664246,1755364254125,-480.0,0.00021797,2]
[379664248,1755364254135,-495.16208974,0.00021797,2]
[379664250,1755364254144,-480.0,0.00021797,2]
[379664252,1755364254153,-480.0,0.00021797,2]
[379664254,1755364254162,-480.0,0.00021797,2]
[379664256,1755364254171,-480.0,0.00021797,2]
[379664258,1755364254180,-480.0,0.00021797,2]
[379664260,1755364254190,-480.0,0.00021797,2]
[379664262,1755364254199,-480.0,0.00021797,2]
[379664264,1755364254208,-480.0,0.00021816,2]
[379664266,1755364254217,-500.0,0.00021816,2]
[379664268,1755364254226,-480.0,0.00021816,2]
[379664270,1755364254235,-480.0,0.00021816,2]
[379664272,1755364254243,-480.0,0.00021816,2]
[379664274,1755364254253,-480.0,0.00021816,2]
[379664276,1755364254262,-427.25577192,0.00021816,2]
[379664278,1755364254271,-534.39828271,0.00021816,2]
[379664280,1755364254280,-480.0,0.00021816,2]
[379664282,1755364254290,-480.0,0.00021816,2]
[379664284,1755364254299,-480.0,0.00021816,2]
[379664286,1755364254309,-480.0,0.00021816,2]
[379664288,1755364254318,-480.0,0.00021816,2]
[379664290,1755364254327,-728.32,0.00021816,2]
[379664292,1755364254336,-480.0,0.00021816,2]
[379664294,1755364254345,-480.0,0.00021816,2]
[379664296,1755364254354,-480.0,0.00021816,2]
[379664298,1755364254363,-480.0,0.00021816,2]
[379664300,1755364254373,-480.0,0.00021816,2]
[379664302,1755364254382,-480.0,0.00021816,2]
[379664304,1755364254391,-4006.42,0.00021816,2]
[379664306,1755364254400,-480.0,0.00021816,2]
[379664308,1755364254411,-480.0,0.00021816,2]
[379664310,1755364254420,-1161.53,0.00021816,2]
[379664312,1755364254430,-460.0,0.00021816,2]
[379664314,1755364254440,-525.61,0.00021816,2]
[379664316,1755364254460,-480.0,0.00021816,2]
[379664318,1755364254469,-480.0,0.00021816,2]
[379664320,1755364254478,-480.0,0.00021816,2]
[379664322,1755364254487,-4520.99,0.00021816,2]
[379664324,1755364254497,-502.34,0.00021816,2]
[379664326,1755364254506,-1000.0,0.00021817,2]
[379664328,1755364254515,-11958.37081498,0.00021817,2]
[379664330,1755364254525,-166.504,0.00021817,2]
[379664332,1755364254535,-281.137168,0.00021817,2]
[379664334,1755364254544,-271.247384,0.00021817,2]
[379664336,1755364254553,-204.55175969,0.00021817,2]
[379664338,1755364254562,-271.247384,0.00021817,2]
[379664340,1755364254570,-1000.0,0.00021818,2]
[379664342,1755364254579,-1000.0,0.00021818,2]
[379664344,1755364254589,-497.43367397,0.00021821,2]
[379664346,1755364254598,-501.30339639,0.00021821,2]
[379664348,1755364254607,-1000.0,0.00021821,2]
[379664350,1755364254616,-1659.54,0.00021862,2]
[379664352,1755364254625,-480.0,0.00021862,2]
[379664354,1755364254634,-647.63,0.00021862,2]
[379664356,1755364254643,-1818.07,0.00021862,2]
[379664358,1755364254653,-1496.06,0.00021862,2]
[379664360,1755364254662,-2148.33,0.00021862,2]
[379664362,1755364254672,-1653.82,0.00021862,2]
[379664364,1755364254681,-933.99,0.00021862,2]
[379664367,1755364254690,-16205.7,0.00021862,2]
[379664369,1755364254700,-480.0,0.00021869,2]
[379664371,1755364254709,-1177.43,0.00021869,2]
[379664373,1755364254718,-480.0,0.00021869,2]
[379664374,1755364254728,-480.0,0.00021869,2]
[379664376,1755364254737,-480.0,0.00021869,2]
[379664378,1755364254745,-480.0,0.00021869,2]
[379664380,1755364254754,-480.0,0.00021869,2]
[379664382,1755364254764,-1101.84,0.00021869,2]
[379664384,1755364254773,-480.0,0.00021869,2]
[379664386,1755364254782,-480.0,0.00021869,2]
[379664388,1755364254792,-701.52,0.00021869,2]
[379664390,1755364254802,-480.0,0.00021869,2]
[379664392,1755364254814,-480.0,0.00021869,2]
[379664403,1755364254914,-871.13,0.00021869,2]
[379664405,1755364254924,-480.0,0.00021869,2]
[379664407,1755364254934,-2093.92,0.00021869,2]
[379664409,1755364254943,-992.75,0.00021869,2]
[379664411,1755364254952,-480.0,0.00021869,2]
[379664413,1755364254962,-480.0,0.00021869,2]
[379664415,1755364254971,-480.0,0.00021869,2]
[379664417,1755364254980,-597.74197553,0.00021869,2]
[379664419,1755364254989,-480.0,0.00021869,2]
[379664421,1755364254999,-480.0,0.00021869,2]
[379664423,1755364255008,-480.0,0.00021869,2]
[379664425,1755364255017,-589.6,0.00021886,2]
[379664427,1755364255026,-259.213663,0.00021887,2]
[379664429,1755364255035,-259.213663,0.00021887,2]
[379664431,1755364255046,-151.128149,0.000219,2]
[379664433,1755364255055,-480.0,0.00021903,2]
[379664435,1755364255063,-480.0,0.00021903,2]
[379664436,1755364255073,-480.0,0.00021903,2]
[379664438,1755364255082,-636.03,0.00021903,2]
[379664440,1755364255091,-460.0,0.00021903,2]
[379664441,1755364255100,-461.38223423,0.00021903,2]
[379664443,1755364255109,-480.0,0.00021903,2]
[379664445,1755364255119,-480.0,0.00021903,2]
[379664446,1755364255128,-746.32,0.00021903,2]
[379664448,1755364255137,-480.0,0.00021903,2]
[379664450,1755364255147,-460.83249565,0.00021903,2]
[379664451,1755364255156,-480.0,0.00021903,2]
[379664453,1755364255165,-480.0,0.00021903,2]
[379664455,1755364255174,-480.0,0.00021903,2]
[379664457,1755364255183,-480.0,0.00021903,2]
[379664458,1755364255192,-480.0,0.00021903,2]
[379664460,1755364255201,-480.0,0.00021903,2]
[379664462,1755364255211,-480.0,0.00021903,2]
[379664463,1755364255220,-480.0,0.00021903,2]
[379664465,1755364255229,-460.0,0.00021903,2]
[379664467,1755364255239,-480.0,0.00021903,2]
[379664468,1755364255251,-464.41522356,0.00021903,2]
[379664470,1755364255260,-480.0,0.00021903,2]
[379664472,1755364255269,-480.0,0.00021903,2]
[379664473,1755364255278,-199.5493,0.00021903,2]
[379664475,1755364255287,-480.0,0.00021903,2]
[379664477,1755364255298,-480.0,0.00021903,2]
[379664478,1755364255307,-480.0,0.00021903,2]
[379664480,1755364255317,-480.0,0.00021903,2]
[379664482,1755364255327,-480.0,0.00021903,2]
[379664483,1755364255336,-480.0,0.00021903,2]
[379664485,1755364255346,-151.128149,0.00021907,10]
[379664487,1755364255357,-843.58077381,0.00021914,2]
[379664489,1755364255366,-500.0,0.00021916,2]
[379664491,1755364255376,-500.0,0.00021916,2]
[379664492,1755364255385,-500.0,0.00021916,2]
[379664494,1755364255395,-500.0,0.00021916,2]
[379664495,1755364255404,-500.0,0.00021916,2]
[379664497,1755364255414,-500.0,0.00021916,2]
[379664499,1755364255424,-500.0,0.00021916,2]
[379664501,1755364255434,-500.0,0.00021916,2]
[379664503,1755364255443,-500.0,0.00021916,2]
[379664504,1755364255453,-500.0,0.00021916,2]
[379664506,1755364255462,-500.0,0.00021916,2]
[379664508,1755364255471,-500.0,0.00021916,2]
[379664509,1755364255481,-500.0,0.00021916,2]
[379664511,1755364255491,-232.31,0.00021916,2]
[379664513,1755364255500,-480.76429998,0.00021916,2]
[379664515,1755364255510,-1283.14,0.00021916,2]
[379664517,1755364255519,-1283.14,0.00021916,2]
[379664518,1755364255528,-1283.14,0.00021916,2]
[379664520,1755364255537,-1283.14,0.00021916,2]
[379664522,1755364255547,-1283.14,0.00021916,2]
[379664524,1755364255556,-1283.14,0.00021916,2]
[379664526,1755364255573,-1283.14,0.00021916,2]
[379664529,1755364255589,-1283.14,0.00021916,2]
[379664531,1755364255605,-1283.14,0.00021916,2]
[379664533,1755364255622,-1283.14,0.00021916,2]
[379664536,1755364255642,-1283.14,0.00021916,2]
[379664538,1755364255659,-1283.14,0.00021916,2]
[379664541,1755364255677,-1283.14,0.00021916,2]
[379664543,1755364255690,-1283.14,0.00021916,2]
[379664545,1755364255706,-1283.14,0.00021916,2]
[379664548,1755364255723,-1283.14,0.00021916,2]
[379664550,1755364255741,-1283.14,0.00021916,2]
[379664552,1755364255756,-1283.14,0.00021916,2]
[379664555,1755364255773,-1283.28306053,0.00021916,2]
[379664557,1755364255788,-589.6,0.00021916,2]
[379664559,1755364255804,-589.6,0.00021916,2]
[379664561,1755364255817,-589.6,0.00021916,2]
[379664564,1755364255832,-589.6,0.00021916,2]
[379664566,1755364255848,-589.6,0.00021916,2]
[379664568,1755364255863,-589.6,0.00021916,2]
[379664570,1755364255878,-589.6,0.00021916,2]
[379664572,1755364255892,-589.6,0.00021916,2]
[379664574,1755364255907,-589.6,0.00021916,2]
[379664577,1755364255920,-589.6,0.00021916,2]
[379664579,1755364255935,-589.6,0.00021916,2]
[379664581,1755364255950,-589.6,0.00021916,2]
[379664583,1755364255964,-589.6,0.00021916,2]
[379664585,1755364255979,-589.6,0.00021916,2]
[379664587,1755364255993,-589.6,0.00021916,2]
[379664589,1755364256007,-589.6,0.00021916,2]
[379664591,1755364256021,-589.6,0.00021916,2]
[379664593,1755364256036,-589.6,0.00021916,2]
[379664595,1755364256049,-589.6,0.00021916,2]
[379664597,1755364256063,-589.67523164,0.00021916,2]
[379664600,1755364256077,-43111.62058651,0.00021917,2]
[379664602,1755364256094,-151.0,0.00021917,2]
[379664604,1755364256111,-151.0,0.00021917,2]
[379664606,1755364256126,-151.0,0.00021917,2]
[379664608,1755364256141,-151.0,0.00021917,2]
[379664610,1755364256155,-151.0,0.00021917,2]
[379664612,1755364256170,-151.0,0.00021917,2]
[379664615,1755364256184,-151.0,0.00021917,2]
[379664617,1755364256199,-151.000001,0.00021917,2]
[379664619,1755364256214,-460.76201245,0.00021917,3]
[379664621,1755364256229,-460.0,0.00021917,3]
[379664623,1755364256244,-480.0,0.00021917,3]
[379664626,1755364256260,-480.0,0.00021917,3]
[379664628,1755364256274,-151.0,0.00021917,2]
[379664630,1755364256289,-151.0,0.00021917,2]
[379664632,1755364256304,-151.0,0.00021917,2]
[379664634,1755364256319,-167.455912,0.00021917,2]
[379664636,1755364256334,-480.0,0.00021917,3]
[379664639,1755364256349,-542.5,0.00021917,3]
[379664641,1755364256365,-277.35383216,0.00021917,3]
[379664643,1755364256380,-500.0,0.00021917,2]
[379664645,1755364256397,-509.53280485,0.00021917,2]
[379664647,1755364256412,-460.0,0.00021917,3]
[379664649,1755364256427,-500.0,0.00021917,2]
[379664652,1755364256442,-480.0,0.00021917,3]
[379664654,1755364256457,-480.0,0.00021917,3]
[379664656,1755364256473,-480.0,0.00021917,3]
[379664658,1755364256488,-480.0,0.00021917,3]
[379664660,1755364256504,-480.0,0.00021917,3]
[379664662,1755364256519,-480.0,0.00021917,3]
[379664664,1755364256529,-480.0,0.00021917,3]
[379664666,1755364256539,-480.0,0.00021917,3]
[379664667,1755364256549,-500.0,0.00021917,3]
[379664669,1755364256560,-500.0,0.00021917,3]
[379664671,1755364256570,-500.0,0.00021917,3]
[379664686,1755364256753,-500.0,0.00021917,3]
[379664689,1755364256782,-480.0,0.00021917,3]
[379664691,1755364256792,-480.0,0.00021917,3]
[379664693,1755364256802,-480.0,0.00021917,3]
[379664695,1755364256816,-480.0,0.00021917,3]
[379664696,1755364256825,-480.0,0.00021917,3]
[379664698,1755364256834,-480.0,0.00021917,3]
[379664700,1755364256844,-480.0,0.00021917,3]
[379664702,1755364256853,-480.0,0.00021917,3]
[379664703,1755364256862,-480.0,0.00021917,3]
[379664705,1755364256871,-480.0,0.00021917,3]
[379664707,1755364256881,-480.0,0.00021917,3]
[379664709,1755364256891,-480.0,0.00021917,3]
[379664711,1755364256900,-460.0,0.00021917,3]
[379664712,1755364256909,-480.0,0.00021917,3]
[379664714,1755364256918,-460.0,0.00021917,3]
[379664716,1755364256927,-480.0,0.00021917,3]
[379664718,1755364256937,-480.0,0.00021917,3]
[379664719,1755364256946,-480.0,0.00021917,3]
[379664721,1755364256955,-480.0,0.00021917,3]
[379664723,1755364256964,-480.0,0.00021917,3]
[379664725,1755364256973,-402.99583468,0.00021917,3]
[379664726,1755364256982,-480.0,0.00021917,3]
[379664728,1755364256991,-155.76986655,0.00021917,3]
[379664730,1755364257000,-480.0,0.00021917,3]
[379664732,1755364257009,-196.3,0.00021917,2]
[379664733,1755364257018,-196.3,0.00021917,2]
[379664735,1755364257027,-480.0,0.00021917,3]
[379664737,1755364257036,-196.3,0.00021917,2]
[379664739,1755364257045,-151.0,0.00021917,2]
[379664740,1755364257054,-151.0,0.00021917,2]
[379664742,1755364257063,-151.0,0.00021917,2]
[379664744,1755364257072,-196.3,0.00021917,2]
[379664746,1755364257081,-196.3,0.00021917,2]
[379664747,1755364257091,-579.3888546,0.00021917,3]
[379664749,1755364257100,-196.3,0.00021917,2]
[379664751,1755364257109,-480.0,0.00021917,3]
[379664753,1755364257118,-480.0,0.00021917,3]
[379664754,1755364257127,-480.0,0.00021917,3]
[379664756,1755364257136,-1643.56,0.00021917,3]
[379664758,1755364257145,-480.0,0.00021917,3]
[379664760,1755364257155,-460.0,0.00021917,3]
[379664761,1755364257164,-480.0,0.00021917,3]
[379664763,1755364257173,-480.0,0.00021917,3]
[379664765,1755364257183,-480.0,0.00021917,3]
[379664767,1755364257192,-480.0,0.00021917,3]
[379664769,1755364257201,-480.0,0.00021917,3]
[379664770,1755364257211,-480.0,0.00021917,3]
[379664772,1755364257220,-480.0,0.00021917,3]
[379664774,1755364257229,-480.0,0.00021917,3]
[379664776,1755364257238,-460.0,0.00021917,3]
[379664777,1755364257248,-465.06985406,0.00021917,3]
[379664779,1755364257259,-460.0,0.00021917,3]